Cogmind - Beta 15 *** ADVENTURER MODE // 2025.06.09 @ 10:53:02 Player: triibiis Result: Destroyed by S-10 Pest with Light Assault Rifle Performance ------------- Evolutions (0) 0 Regions Visited (1) 200 Robots Destroyed (13) 65 Value Destroyed (379) 379 Prototype IDs (0) 0 Alien Tech Used (0) 0 Bonus (0) 0 TOTAL SCORE: 644 Bonus ------- None Cogmind --------- Core Integrity 0/250 Matter 142/300 Energy 100/100 System Corruption 0% Temperature Cool (0) Movement Core (1350) Ox26 Location -10/Materials Parts ------- > --- POWER (1) -------- (None) > --- PROPULSION (2) --- (None) > --- UTILITY (2) ------ Huge Storage Unit > --- WEAPON (2) ------- (None) > --- INVENTORY (25) --- Ion Engine Light Treads Light Treads Wheel Light Assault Rifle Datajack Datajack Peak State ------------ > --- POWER ------------ Ion Engine > --- PROPULSION ------- Wheel Compact Wheel > --- UTILITY ---------- Small Storage Unit Huge Storage Unit > --- WEAPON ----------- Light Assault Rifle Grenade Launcher > --- INVENTORY -------- Ion Engine Light Treads Light Treads Light Assault Rifle [Rating: 7] Favorites ----------- Power Ion Engine Engine Ion Engine Propulsion Wheel Wheel Wheel Utility Huge Storage Unit Storage Huge Storage Unit Weapon Light Assault Rifle Energy Gun Medium Laser Ballistic Gun Light Assault Rifle Launcher Grenade Launcher Special Melee Weapon Datajack Build | -11 -10 ------- Run | Yrd Mat Slots Evolved . | . . Power . | . . Propulsion . | . . Utility . | . . Weapon . | . . Parts Attached 11 | 6 5 Power 2 | 1 1 Engine 2 | 1 1 Core . | . . Reactor . | . . Propulsion 2 | 2 . Treads . | . . Leg . | . . Wheel 2 | 2 . Hover . | . . Flight . | . . Utility 3 | 1 2 Device . | . . Storage 3 | 1 2 Processor . | . . Hackware . | . . Protection . | . . Artifact . | . . Weapon 4 | 2 2 Energy Gun 1 | 1 . Energy Cannon . | . . Ballistic Gun 1 | 1 . Ballistic Cannon . | . . Launcher 1 | . 1 Special Weapon . | . . Impact Weapon . | . . Slashing Weapon . | . . Piercing Weapon . | . . Special Melee Weapon 1 | . 1 Unidentified Prototypes . | . . Parts Lost 7 | . 7 Power 1 | . 1 Propulsion 2 | . 2 Utility 1 | . 1 Weapon 3 | . 3 Highest Loss Streak 7 | . 7 To Critical Strikes . | . . Average Backups 5 | 2 5 Power . | . . Propulsion 2 | 1 2 Utility . | . . Weapon . | . 1 Tool/Special . | . . Unused Backups 7 | . 7 Power 1 | . 1 Propulsion 3 | . 3 Utility . | . . Weapon 1 | . 1 Tool/Special 2 | . 2 Average Slot Usage (%) 92 | . 92 Engine 12 | . 12 Wheel 26 | . 26 Storage 24 | . 24 Ballistic Gun 13 | . 13 Launcher 12 | . 12 Peak Build Rating 7 | 6 7 Average Rating 6 | 4 6 On Entrance 3 | . 6 Naked Turns . | . . Heaviest Build 90 | 13 90 Greatest Support 26 | 26 26 Greatest Overweight (x) 28 | . 28 Average Overweight (x) 2 | . 2 Largest Inventory Capacity 25 | 8 25 Average Capacity 22 | 6 24 Most Carried 8 | 4 8 Average Carried 5 | 2 5 Final Capacity 25 | 8 25 Final Carried 7 | 4 7 Class Distribution -------------------- 100% | Mutant Dominant Class ---------------- Mutant | -10/Materials Resources | -11 -10 ----------- Run | Yrd Mat Matter Collected 317 | 219 98 Remotely . | . . Salvage Created 255 | . 255 Parts 17 | . 17 Haulers Intercepted 1 | . 1 Recyclers Shooed . | . . Parts Field Recycled . | . . Retrieved Matter . | . . Parts Self-Destructed . | . . Prevented . | . . Kills | -11 -10 ------- Run | Yrd Mat Combat Hostiles Destroyed 10 | . 10 Guns 3 | . 3 AOE 7 | . 7 Classes Destroyed 4 | . 4 Hauler 1 | . 1 Watcher 2 | . 2 Swarmer 2 | . 2 Grunt 8 | . 8 Best Kill Streak 4 | . 4 Combat Bots Only 3 | . 3 Max Kills in Single Turn 3 | . 3 Gunslinging . | . . Exploded 3 | . 3 Melee . | . . Uniques/NPCs Destroyed . | . . Combat | -11 -10 -------- Run | Yrd Mat Hostile Shots Fired 104 | . 104 Missed 31 | . 31 Hits 73 | . 73 Projectile 73 | . 73 Critical Strikes 1 | . 1 Damage Taken 670 | . 670 Core 254 | . 254 Absorbed by Shields . | . . Ignored by Resistances 203 | . 203 Core Remaining (%) 100 | 100 . Volleys Fired 30 | . 30 Largest 2 | . 2 Hottest 50 | . 50 Shots Fired 46 | . 46 Gun 30 | . 30 Cannon . | . . Launcher 16 | . 16 Special . | . . Kinetic 30 | . 30 Thermal . | . . Explosive 16 | . 16 Electromagnetic . | . . Robot Hit Streak 21 | . 21 Robot Miss Streak 2 | . 2 Penetration Max . | . . Secondary Targets . | . . Shots Hit Robots 34 | . 34 Core Hits 25 | . 25 Critical Kills . | . . Critical Parts Destroyed . | . . Critical Strikes . | . . Melee Attacks . | . . Impact . | . . Slashing . | . . Piercing . | . . Sneak Attacks . | . . Combat Hostiles . | . . Follow-up Attacks . | . . Damage Inflicted 1021 | . 1021 Guns 193 | . 193 Cannons . | . . Explosions 828 | . 828 Melee . | . . Ramming . | . . Kinetic 193 | . 193 Thermal . | . . Explosive 828 | . 828 Electromagnetic . | . . Impact . | . . Slashing . | . . Piercing . | . . Highest Corruption . | . . Average Corruption . | . . Corruption Purged . | . . Corruption Blocked . | . . Overload Shots . | . . Overflow Damage 27 | . 27 Projectiles . | . . Explosions 27 | . 27 Melee . | . . Knockbacks . | . . Impact . | . . Kinetic . | . . Secondary . | . . Self-Inflicted Damage 70 | . 70 Shots 5 | . 5 Rammed . | . . Targets Rammed . | . . Kicked . | . . Crushed . | . . Highest Temperature 46 | . 46 Average Temperature 13 | . 13 Received Heat Transfer 369 | . 369 Siege Activations . | . . Martial Activations . | . . Shielding Activations . | . . Robots Disrupted . | . . Combat Hostiles . | . . Robots Corrupted . | . . Combat Hostiles . | . . Parts Fried . | . . Impact Corruptions . | . . Robots Melted . | . . Combat Hostiles . | . . Parts Melted . | . . Heat Transferred . | . . Parts Sabotaged . | . . Parts Stolen . | . . Parts Stripped . | . . Power Chain Reactions . | . . Alert | -11 -10 ------- Run | Yrd Mat Maximum Alert Level . | . . Low Security (%) 100 | 100 100 Level 1 . | . . Level 2 . | . . Level 3 . | . . Level 4 . | . . Level 5 . | . . High Security . | . . Max Security . | . . Peak Influence 158 | . 158 Initial . | . . Average 46 | . 51 Influence Increases 386 | . 386 Destroy 0b10 Robot/C 200 | . 200 Destroy 0b10 Robot/NC 15 | . 15 Destroy Leader 46 | . 46 Successful Hack 11 | . 11 Disable Machine 36 | . 36 Destroy Structure 78 | . 78 Influence Decreases 324 | . 324 Time Decay 254 | . 254 Lost Part 70 | . 70 Squads Dispatched 3 | . 3 Investigation 3 | . 3 Extermination . | . . Reinforcement . | . . Assault . | . . Garrison . | . . Intercept . | . . Searches Triggered . | . . Construction Impeded . | . . Haulers Reinforced . | . . Active Scanning Responses . | . . Cargo Convoy Interrupts . | . . Stealth | -11 -10 --------- Run | Yrd Mat Distress Signals 1 | . 1 Communications Jammed . | . . Distress Signals . | . . Times Spotted 17 | . 17 Peak Tracking Total 5 | . 5 Tactical Retreats . | . . Traps | -11 -10 ------- Run | Yrd Mat Traps Triggered 1 | . 1 Indirectly . | . . Trap Hack Attempts . | . . Triggered . | . . Disarmed . | . . Reprogrammed . | . . Reused . | . . Traps Extracted . | . . Installed . | . . Triggered . | . . Machines | -11 -10 ---------- Run | Yrd Mat Machines Disabled 4 | . 4 Max in Single Turn 3 | . 3 Machines Repaired . | . . Machines Dismantled . | . . Machines Sabotaged . | . . Overloaded Fab Kills . | . . Hacking | -11 -10 --------- Run | Yrd Mat Machines Accessed 3 | . 3 Terminals 3 | . 3 Fabricators . | . . Repair Stations . | . . Recycling Units . | . . Scanalyzers . | . . Garrison Access . | . . Total Hacks 13 | . 13 Successful 4 | . 4 Failed 9 | . 9 Catastrophic 4 | . 4 Database Lockouts . | . . Manual 11 | . 11 Terminals 13 | . 13 Fabricators . | . . Repair Stations . | . . Recycling Units . | . . Scanalyzers . | . . Garrison Access . | . . Terminal Hacks 4 | . 4 Record 1 | . 1 Branch Access Points 1 | . 1 Terminal Index 1 | . 1 Maintenance Status 1 | . 1 Fabricator Hacks . | . . Repair Station Hacks . | . . Recycling Unit Hacks . | . . Scanalyzer . | . . Garrison Access Hacks . | . . Unauthorized Hacks . | . . Terminals . | . . Fabricators . | . . Repair Stations . | . . Recycling Units . | . . Scanalyzers . | . . Garrison Access . | . . Data Cores Recovered . | . . Used . | . . Hacking Detections 3 | . 3 Full Trace Events 3 | . 3 Feedback Events . | . . Feedback Blocked . | . . Robot Schematics Acquired . | . . Robots Built . | . . Authchips . | . . Time . | . . Total Robot Build Rating . | . . Part Schematics Acquired . | . . Parts Built . | . . Authchips . | . . Time . | . . Total Part Build Rating . | . . Parts Repaired . | . . Time . | . . Parts Recycled . | . . Recycled Matter . | . . Retrieved Matter . | . . Retrieved Components . | . . Parts Scanalyzed . | . . Part Schematics Acquired . | . . Parts Damaged . | . . Bothacking | -11 -10 ------------ Run | Yrd Mat Used RIF Installer . | . . Robots Hacked . | . . Non-combat . | . . Combat . | . . Robot Hacks Applied . | . . Relay Couplers Released . | . . Fabnet Peak Effective % . | . . Robots Rewired . | . . Allies Hacked . | . . Hacks Repelled . | . . Allies | -11 -10 -------- Run | Yrd Mat Total Allies . | . . Largest Group . | . . Highest-Rated Group . | . . Highest-Rated Ally . | . . Total Orders . | . . Ally Attacks . | . . Total Damage . | . . Kills . | . . Allies Corrupted . | . . Allies Melted . | . . Intel | -11 -10 ------- Run | Yrd Mat Active Infowar (turns) . | . . Robot Analysis Total . | . . Derelict Logs Recovered . | . . Drone Launches . | . . Drone Recoveries . | . . Exploration | -11 -10 ------------- Run | Yrd Mat Turns Passed 766 | 81 685 Spaces Moved 508 | 77 431 Core 5 | 4 1 Treads . | . . Legs . | . . Wheels 503 | 73 430 Hover . | . . Flight . | . . Fastest Speed 50 | 50 90 Average Speed 129 | 88 136 Slowest Speed 1450 | 100 1450 Overloaded Moves . | . . Propulsion Burnouts . | . . Robots Hopped . | . . Potential Cave-ins . | . . Cave-ins Triggered . | . . Exploration Rate (%) 34 | 4 65 Regions Visited 1 Branch Regions . Pre-discovered Areas . | . . Known Exits Taken . | . . Unknown Exits Taken 1 | 1 . Scrap Searched . | . . Spaces Dug . | . . Terrain Destroyed 82 | . 82 Melee . | . . Projectile . | . . AOE 82 | . 82 Terrain Rammed . | . . Walls Destroyed . | . . Machines Disabled . | . . Actions | -11 -10 --------- Run | Yrd Mat Total 573 | 86 487 Wait 9 | . 9 Move 507 | 76 431 Hop . | . . Pick Up 10 | 4 6 Fast Attach 9 | 6 3 Attach 2 | . 2 Detach . | . . Swap 1 | . 1 Drop 5 | . 5 Fire 30 | . 30 Melee . | . . Ram . | . . Kick . | . . Crush . | . . Escape Stasis . | . . Rewire . | . . Trap . | . . Miscellaneous . | . . Route ------- -11/Scrapyard -10/Materials (discovered 4 exits: [*Mat x2] / Min / [*Sub]) History --------- Turn | Location | Event 21 | -11/Scrapyard | Discovered new exit (range 15) 82 | -11/Scrapyard | Entered Materials 262 | -10/Materials | Discovered new exit (range 12) 279 | -10/Materials | Discovered new exit (range 16) 312 | -10/Materials | Build established: Mutant 540 | -10/Materials | Identified exit to Mines 581 | -10/Materials | Discovered new exit (range 16) 752 | -10/Materials | Core integrity fell below 50% 761 | -10/Materials | Core integrity fell below 20% 767 | -10/Materials | Destroyed by S-10 Pest with Light Assault Rifle Last Messages --------------- S-10 Pest destroyed. Destroyed Flight Unit. S-10 Pest destroyed. Grenade Launcher destroyed. K-01 Serf collects debris. Com. Wheel destroyed. K-01 Serf collects debris. Wheel destroyed. Lgt. Assault Rifle destroyed. Critical hit (Burn: +37). K-01 Serf collects debris. Ion Engine destroyed. K-01 Serf collects debris. Datajack destroyed. K-01 Serf collects debris. Sml. Matter Pod destroyed. K-01 Serf collects debris. The unstable cave ceiling collapses. K-01 Serf collects debris. K-01 Serf cleans the Matter Pump. Map ----- +----------------------------------------------------+ | ???? """"" # = #?????????# #?????????# | | ???? """"" # ##+########???? ?????????### | | ????? """ # # #???? ??????????# | | ############# # #???? ???????????# | | #?## # =#?????>????????????# | | #### ##+# #??????????????????# | | T ####+######??????????????????+ | | ## #?????????????????????# | | #### # ## #?????????????????????# | | #### """ ##|! #?????????????????????# | | # """"" ##! #?????????????????????# | | # ## """"" ## #?????????????????????? | | # # # """ ## #??????????????????????? | | #! # ## """ #??????????????????????? | | # ############# """ #??????????????????????? | | #??????????# """ #??????????????????????? | | = #??????????# #????????? ???????????? | | * #??????????# #???????? ??????????? | | = ##??????????# #???#### ??????????? | | # #??????????####+###### # ??????????? | | #??????????# *%! ?????????? | | #??????????+ s %[ ?????????? | | # #??????????# g %=* ?????????? | | ##### #??????????# k [ ?????????? | | ????# #??????????# """ k""" ""??????????? | | ????# #??????????# @ """ """??????????????? | | ????# #??????????# "Y" """ ""???????????????? | | ????# < #??????????# """g g ???????????????? | | ????# #??????????# ??????????????? | | ????#####??????????# ??????????????? | | ???????????????????################??????????????? | | ?????????????????????????????????????????????????? | | ?????????????????????????????????????????????????? | | ?????????????????????????????????????????????????? | | ?????????????????????????????????????????????????? | | ?????????????????????????????????????????????????? | | ?????????????????????????????????????????????????? | | ?????????????????????????????????????????????????? | | ?????????????????????????????????????????????????? | | ?????????????????????????????????????????????????? | | ?????????????????????????????????????????????????? | | ?????????????????????????????????????????????????? | | | | | | | | | | | | | | | | | +----------------------------------------------------+ Best States ------------- Heat Dissipation 25 Energy Generation 10 Energy Capacity 250 Matter Stores 259 Matter Capacity 350 Sight Range 16 Terrain Scan Density 10 Resistance: KI 20 Resistance: TH 20 Resistance: EX 20 Resistance: EM 20 Resistance: I 20 Resistance: S 20 Resistance: P 20 Evasion (%) 42 Offensive Hacking 10 Item Schematics ----------------- None Robot Schematics ------------------ None Fabricated ------------ Nothing Repaired ---------- Nothing Alien Tech Used ----------------- None Achievements -------------- None Challenges ------------ None Game ------ Seed FluxConceptCannon Manual? 0 Play Time 00:07:35 Cumulative 10.9 hours Start 2025.06.09 @ 10:46:56 End 2025.06.09 @ 10:53:02 Sessions 1 Manual Loads 0 Difficulty Adventurer Special Mode None Game No. 30 Rogue 0 Adventurer 30 Explorer 0 Win Type - Total 0 Types 0/0/0/0/0/0/0/0/0/0 Lore% 15 Gallery% 14 Achievement% 17 Wizard Run 0 Options --------- Layout 1 ASCII 0 Keyboard 0 Movement Arrows Keybinds 0 Fullscreen 1 Font 36/Smallcaps Map View 50x43 Zoom Use 0% Tactical HUD 0 Map Filters NONE Filters NONE Steam 1 RUN: 5b6642d0-91e5-4351-a2f7-d4be3b4d9a77